Cogmind - Beta 10.1 @@@ ROGUE MODE // 2021.04.06 @ 13:46:51 Player: DragoX Result: Destroyed by G-47 Trooper with Particle Gun Performance ------------- Evolutions (0) 0 Regions Visited (2) 400 Robots Destroyed (31) 155 Value Destroyed (559) 559 Prototype IDs (0) 0 Alien Tech Used (0) 0 Bonus (0) 0 TOTAL SCORE: 1114 Bonus ------- None Cogmind --------- Core Integrity 0/250 Matter 158/300 Energy 250/250 System Corruption 1% Temperature Cool (14) Movement Treading (180) Ox1 Location -10/Mines Parts ------- > --- POWER (1) -------- Ion Engine > --- PROPULSION (2) --- Light Treads Light Treads > --- UTILITY (2) ------ High-capacity Storage Unit High-capacity Storage Unit > --- WEAPON (2) ------- Assault Rifle Light Cannon > --- INVENTORY (20) --- Improved Heat Sink High-capacity Storage Unit High-capacity Battery (400) Signal Interpreter Transport Network Coupler Targeting Computer Targeting Computer Targeting Computer ECM Suite Core Shielding Core Shielding Core Shielding Core Shielding Light Armor Plating Hacking Suite Assault Rifle Assault Rifle Assault Rifle Rocket Launcher Datajack Peak State ------------ > --- POWER ------------ Light Ion Engine > --- PROPULSION ------- Aluminum Leg Aluminum Leg > --- UTILITY ---------- Improved Heat Sink Small Storage Unit > --- WEAPON ----------- EM Pulse Gun Assault Rifle > --- INVENTORY -------- Ion Engine Light Treads Light Treads Compact Wheel Compact Wheel Medium Laser [Rating: 9] Favorites ----------- Power Ion Engine Engine Ion Engine Propulsion Light Treads Treads Light Treads Leg Aluminum Leg Utility High-capacity Storage Unit Device Improved Heat Sink Storage High-capacity Storage Unit Weapon Assault Rifle Energy Gun EM Pulse Gun Ballistic Gun Assault Rifle Ballistic Cannon Light Cannon Build | -11 -10 -10 ------- Run | Scr Mat Min Slots Evolved . | . . . Power . | . . . Propulsion . | . . . Utility . | . . . Weapon . | . . . Parts Attached 15 | . 14 1 Power 3 | . 2 1 Engine 3 | . 2 1 Core . | . . . Reactor . | . . . Propulsion 3 | . 3 . Treads 2 | . 2 . Leg 1 | . 1 . Wheel . | . . . Hover . | . . . Flight . | . . . Utility 5 | . 5 . Device 2 | . 2 . Storage 3 | . 3 . Processor . | . . . Hackware . | . . . Protection . | . . . Artifact . | . . . Weapon 4 | . 4 . Energy Gun 1 | . 1 . Energy Cannon . | . . . Ballistic Gun 2 | . 2 . Ballistic Cannon 1 | . 1 . Launcher . | . . . Special Weapon . | . . . Impact Weapon . | . . . Slashing Weapon . | . . . Piercing Weapon . | . . . Special Melee Weapon . | . . . Unidentified Prototypes . | . . . Parts Lost 6 | . 5 1 Power 2 | . 1 1 Propulsion 2 | . 2 . Utility . | . . . Weapon 2 | . 2 . Highest Loss Streak 3 | . 3 1 Average Slot Usage (%) 97 | . 97 96 Engine 12 | . 13 10 Treads 14 | . 7 28 Leg 13 | . 19 . Device 1 | . 2 . Storage 25 | . 24 28 Energy Gun 3 | . 4 . Ballistic Gun 18 | . 21 14 Ballistic Cannon 5 | . 1 14 Naked Turns . | . . . Heaviest Build 74 | 11 74 74 Greatest Support 40 | 20 40 40 Greatest Overweight (x) 3 | . 3 1 Average Overweight (x) 1 | . 1 1 Largest Inventory Capacity 20 | . 20 20 Average Capacity 17 | . 17 20 Most Carried 20 | . 20 20 Average Carried 15 | . 12 19 Final Capacity 20 | 6 20 20 Final Carried 20 | 6 20 20 Class Distribution -------------------- 85% | Hauler-Mutant 14% | Mutant Dominant Class ---------------- Hauler-Mutant | -10/Materials Hauler-Mutant | -10/Mines Resources | -11 -10 -10 ----------- Run | Scr Mat Min Matter Collected 726 | 175 480 71 Remotely . | . . . Salvage Created 877 | . 793 84 Parts 74 | . 64 10 Haulers Intercepted 2 | . 2 . Recyclers Shooed . | . . . Parts Field Recycled . | . . . Retrieved Matter . | . . . Parts Self-Destructed . | . . . Prevented . | . . . Kills | -11 -10 -10 ------- Run | Scr Mat Min Combat Hostiles Destroyed 21 | . 16 5 Guns 19 | . 15 4 Cannons 2 | . 1 1 Classes Destroyed 8 | . 7 1 Worker 1 | . . 1 Builder 2 | . 2 . Tunneler 1 | . 1 . Hauler 2 | . 2 . Operator 1 | . 1 . Watcher 3 | . 3 . Swarmer 11 | . 6 5 Grunt 10 | . 10 . Best Kill Streak 4 | . 3 4 Combat Bots Only 3 | . 3 3 Max Kills in Single Turn 2 | . 2 1 Gunslinging . | . . . Exploded . | . . . Melee . | . . . Uniques/NPCs Destroyed . | . . . Combat | -11 -10 -10 -------- Run | Scr Mat Min Damage Taken 1235 | . 950 285 Core 259 | . 201 58 Absorbed by Shields . | . . . Core Remaining (%) 100 | 100 . . Volleys Fired 117 | . 101 16 Largest 2 | . 2 2 Hottest 70 | . 70 55 Shots Fired 223 | . 192 31 Gun 201 | . 185 16 Cannon 22 | . 7 15 Launcher . | . . . Special . | . . . Kinetic 177 | . 146 31 Thermal 13 | . 13 . Explosive . | . . . Electromagnetic 33 | . 33 . Robot Hit Streak 8 | . 8 3 Robot Miss Streak 4 | . 4 4 Penetration Max . | . . . Secondary Targets . | . . . Shots Hit Robots 125 | . 112 13 Core Hits 45 | . 39 6 Critical Hits 1 | . . 1 Critical Kills . | . . . Critical Parts Destroyed 1 | . . 1 Melee Attacks . | . . . Impact . | . . . Slashing . | . . . Piercing . | . . . Sneak Attacks . | . . . Combat Hostiles . | . . . Follow-up Attacks . | . . . Damage Inflicted 1414 | . 1213 201 Guns 1244 | . 1113 131 Cannons 149 | . 79 70 Explosions . | . . . Melee . | . . . Ramming 21 | . 21 . Kinetic 956 | . 755 201 Thermal 113 | . 113 . Explosive . | . . . Electromagnetic 324 | . 324 . Impact . | . . . Slashing . | . . . Piercing . | . . . Highest Corruption 1 | . 1 1 Average Corruption 1 | . 1 1 Corruption Purged . | . . . Effects 9 | . 5 4 Message Errors 2 | . . 2 Energy Discharges 2 | . 1 1 Data Loss (minor) 1 | . 1 . Targeting Errors 2 | . 2 . Weapon Failures 2 | . 1 1 Overload Shots . | . . . Overflow Damage . | . . . Projectiles . | . . . Explosions . | . . . Melee . | . . . Knockbacks 2 | . 1 1 Impact . | . . . Kinetic 2 | . 1 1 Secondary . | . . . Self-Inflicted Damage 10 | . 10 . Shots . | . . . Rammed 1 | . 1 . Targets Rammed 1 | . 1 . Kicked . | . . . Crushed . | . . . Highest Temperature 125 | . 125 7 Average Temperature 32 | . 33 6 Received Heat Transfer 447 | . 429 18 Siege Activations . | . . . Robots Corrupted . | . . . Combat Hostiles . | . . . Parts Fried . | . . . Impact Corruptions . | . . . Robots Melted . | . . . Combat Hostiles . | . . . Parts Melted 1 | . 1 . Heat Transferred 333 | . 333 . Parts Sabotaged . | . . . Parts Stolen . | . . . Parts Stripped . | . . . Power Chain Reactions . | . . . Missiles Intercepted . | . . . Alert | -11 -10 -10 ------- Run | Scr Mat Min Peak Influence 364 | . 364 155 Initial 25 | . . 25 Average 100 | . 117 61 Maximum Alert Level 1 | . 1 . Low Security (%) 92 | . 88 100 Level 1 7 | . 11 . Level 2 . | . . . Level 3 . | . . . Level 4 . | . . . Level 5 . | . . . High Security . | . . . Max Security . | . . . Squads Dispatched 4 | . 4 . Investigation 2 | . 2 . Extermination . | . . . Reinforcement 2 | . 2 . Assault . | . . . Garrison . | . . . Intercept . | . . . Construction Impeded . | . . . Haulers Reinforced . | . . . Stealth | -11 -10 -10 --------- Run | Scr Mat Min Distress Signals . | . . . Communications Jammed . | . . . Distress Signals . | . . . Times Spotted 48 | . 37 11 Peak Tracking Total 4 | . 4 3 Tactical Retreats 7 | . 3 4 Traps | -11 -10 -10 ------- Run | Scr Mat Min Traps Triggered 4 | . 4 . Indirectly . | . . . Trap Hack Attempts . | . . . Triggered . | . . . Disarmed . | . . . Reprogrammed . | . . . Reused . | . . . Traps Extracted . | . . . Installed . | . . . Triggered . | . . . Machines | -11 -10 -10 ---------- Run | Scr Mat Min Machines Disabled 1 | . . 1 Max in Single Turn 1 | . . 1 Machines Sabotaged . | . . . Garrisons Compromised . | . . . Overloaded Fab Kills . | . . . Fab Network Shutdowns . | . . . Hacking | -11 -10 -10 --------- Run | Scr Mat Min Machines Accessed 2 | . 2 . Terminals 2 | . 2 . Fabricators . | . . . Repair Stations . | . . . Recycling Units . | . . . Scanalyzers . | . . . Garrison Access . | . . . Total Hacks 7 | . 7 . Successful 5 | . 5 . Failed 2 | . 2 . Catastrophic . | . . . Database Lockouts . | . . . Manual 7 | . 7 . Terminals 7 | . 7 . Fabricators . | . . . Repair Stations . | . . . Recycling Units . | . . . Scanalyzers . | . . . Garrison Access . | . . . Terminal Hacks . | . . . Fabricator Hacks . | . . . Repair Station Hacks . | . . . Recycling Unit Hacks . | . . . Scanalyzer . | . . . Garrison Access Hacks . | . . . Unauthorized Hacks 5 | . 5 . Terminals 5 | . 5 . Track 1 | . 1 . Assimilate 1 | . 1 . Botnet 2 | . 2 . Operators 1 | . 1 . Fabricators . | . . . Repair Stations . | . . . Recycling Units . | . . . Scanalyzers . | . . . Garrison Access . | . . . Data Cores Recovered . | . . . Used . | . . . Hacking Detections 1 | . 1 . Full Trace Events . | . . . Feedback Events . | . . . Feedback Blocked . | . . . Robot Schematics Acquired . | . . . Robots Built . | . . . Matter . | . . . Time . | . . . Total Robot Build Rating . | . . . Part Schematics Acquired . | . . . Parts Built . | . . . Matter . | . . . Time . | . . . Total Part Build Rating . | . . . Parts Repaired . | . . . Time . | . . . Parts Recycled . | . . . Recycled Matter . | . . . Retrieved Matter . | . . . Retrieved Components . | . . . Parts Scanalyzed . | . . . Part Schematics Acquired . | . . . Parts Damaged . | . . . Bothacking | -11 -10 -10 ------------ Run | Scr Mat Min Used RIF Installer . | . . . Robots Hacked . | . . . Non-combat . | . . . Combat . | . . . Robot Hacks Applied . | . . . Relay Couplers Released . | . . . Robots Rewired . | . . . Allies Hacked . | . . . Hacks Repelled . | . . . Allies | -11 -10 -10 -------- Run | Scr Mat Min Total Allies . | . . . Largest Group . | . . . Highest-Rated Group . | . . . Highest-Rated Ally . | . . . Total Orders . | . . . Ally Attacks . | . . . Total Damage . | . . . Kills . | . . . Allies Corrupted . | . . . Allies Melted . | . . . Intel | -11 -10 -10 ------- Run | Scr Mat Min Robot Analysis Total . | . . . Derelict Logs Recovered 1 | . . 1 Drone Launches . | . . . Drone Recoveries . | . . . Exploration | -11 -10 -10 ------------- Run | Scr Mat Min Turns Passed 2270 | . 1571 699 Spaces Moved 1029 | 1 668 360 Core . | . . . Treads 556 | . 196 360 Legs 473 | 1 472 . Wheels . | . . . Hover . | . . . Flight . | . . . Fastest Speed 120 | 120 120 180 Average Speed 178 | 120 177 180 Slowest Speed 210 | 120 210 180 Overloaded Moves . | . . . Propulsion Burnouts . | . . . Robots Hopped . | . . . Cave-ins Triggered . | . . . Exploration Rate (%) 61 | 2 97 84 Regions Visited 2 Branch Regions 1 Pre-discovered Areas 1 | . . 1 Known Exits Taken . | . . . Unknown Exits Taken 2 | 1 1 . Scrap Searched 1 | . . 1 Spaces Dug . | . . . Terrain Destroyed . | . . . Melee . | . . . Projectile . | . . . AOE . | . . . Terrain Rammed . | . . . Walls Destroyed . | . . . Machines Disabled . | . . . Actions | -11 -10 -10 --------- Run | Scr Mat Min Total 1245 | . 865 380 Wait 41 | . 41 . Move 1027 | . 667 360 Hop . | . . . Pick Up 28 | . 26 2 Fast Attach 4 | . 4 . Attach 7 | . 6 1 Detach 1 | . 1 . Swap 4 | . 4 . Drop 15 | . 14 1 Fire 117 | . 101 16 Melee . | . . . Ram . | . . . Kick 1 | . 1 . Crush . | . . . Escape Stasis . | . . . Rewire . | . . . Trap . | . . . Miscellaneous . | . . . Route ------- -11/Scrapyard -10/Materials (discovered 5 exits: [*Mat x3] / [*Min x2]) -10/Mines History --------- Turn | Location | Event 1 | -11/Scrapyard | Discovered new exit (range 0) 1 | -11/Scrapyard | Entered Materials 1 | -10/Materials | Discovered new exit (range 8) 130 | -10/Materials | Discovered new exit (range 6) 301 | -10/Materials | Build established: Mutant 584 | -10/Materials | Discovered new exit (range 7) 653 | -10/Materials | Build established: Hauler-Mutant 725 | -10/Materials | Discovered new exit (range 11) 1021 | -10/Materials | Discovered new exit (range 16) 1107 | -10/Materials | Core integrity fell below 50% 1143 | -10/Materials | Lost 3 parts (1p2n) 1435 | -10/Materials | Core integrity fell below 20% 1572 | -10/Materials | Entered Mines 1947 | -10/Mines | Received a Rocket Launcher from a helpful Derelict 2271 | -10/Mines | Destroyed by G-47 Trooper with Particle Gun Last Messages --------------- 01943_ DO-HIL(g): "Pshh... whatever." 01944_ DO-HIL(g): "Everyone knows a good old rocket launcher goes a long way." 01945_ DO-HIL(g): "Need to get rid of a swarm? Done. Need a big hole in the wall? Done." 01946_ DO-HIL(g): "Need a small hole in the wall? Leave that to the mining laser wimps, I say!" 01947_ DO-HIL(g): "Would you like a rocket launcher? I know I would if I were you, so I'm going to lend you mine." 01947_ DO-HIL(g) slips back into the shadows. 01953_ Acquired Rocket Launcher. 02008_ Searching scrap... 02008_ Found Med. Battery. 02008_ Found 16 Matter. 02009_ Acquired 16 matter. 02074_ K-01 Serf collects debris. 02147_ Dropped Heat Sink. 02147_ Acquired Hcp. Storage Unit. 02149_ System corrupted: Energy discharge (-67). 02249_ DY#%%PQINZPRSNEFZFEWPFOKWHXTGEWH Map ----- +----------------------------------------------------+ | #???## #### ##????????# #????????????????? | | #???# ########## #????????????????? | | #???# #????????????????? | | #??## #############????????????????? | | #??# #####????????????????????????????? | | ???# ##????????????????????????????????? | | ???# ##?????????????????????????????????? | | ???## #??????????????????????????????????? | | ????# #??????????????????????????????????? | | ????# #??????????????????????????????????? | | ????# #??????????????????????????????????? | | ????# #??????????????????????????????????? | | ????# #??????????????????????????????????? | | ????# ##?????????????????????????????????? | | ##### ##????????????????????????????????? | | #????????????????????????????????? | | #????????????????????????????????? | | ####### #????????????????????????????????? | | ?????## #????????????????????????????????? | | ###### #####????????????????????????????? | | #???????????????????? ##?????? | | """ #??????????????????" ??????? | | ## """ ### ###?????????????? ????????? | | ?## """ ##?# #???????????? ???????????? | | ??## #??### ########### g#?????????????? | | ???## #????# @ #?????????????? | | ????## ##????# ##?????????????? | | ?????###??????###############??????????????? | | ???????????????????????????????????????????? | | ???????????????????????????????????????????? | | | | | | | | | | | | | | | | | | | | | | | | | | | | | | | | | | | | | | | | | +----------------------------------------------------+ Best States ------------- Heat Dissipation 39 Energy Generation 10 Energy Capacity 250 Matter Stores 300 Matter Capacity 300 Sight Range 16 Terrain Scan Density 10 Evasion (%) 40 Recoil Reduction 2 Item Schematics ----------------- None Robot Schematics ------------------ None Fabricated ------------ Nothing Alien Tech Used ----------------- None Achievements -------------- None Challenges ------------ None Game ------ Seed ColdSpectralTriangulator Manual? 0 Play Time 00:19:53 Cumulative 13.7 hours Start 2021.04.06 @ 12:34:45 End 2021.04.06 @ 13:46:51 Sessions 1 Manual Loads 0 Difficulty Rogue Special Mode None Game No. 23 Rogue 23 Adventurer 0 Explorer 0 Win Type - Total 0 Types 0/0/0/0/0/0/0/0/0 Lore% 10 Gallery% 14 Achievement% 17 Wizard Run 0 Options --------- ASCII 0 Keyboard 0 Movement Mouse Keybinds 0 Fullscreen 2 Font 18/X11 Map View 76x50 Tactical HUD 1 Map Filters NONE Filters NONE Steam 0 RUN: aa053f7f-01f9-4a06-92d7-34469815c745